lending/lending_fUSD_20250122
["ID","MTS","AMOUNT","RATE_DAILY","PERIOD"]
[349982560,1737547864590,-741.562359,0.00021797,2]
[349982561,1737547864608,-500.0,0.00021797,2]
[349982562,1737547864620,-645.68,0.00021797,2]
[349982563,1737547864634,-151.0,0.00021797,2]
[349982564,1737547864646,-286.77409,0.00021797,2]
[349982565,1737547864656,-286.77409,0.00021797,2]
[349982566,1737547864665,-525.7,0.00021797,2]
[349982567,1737547864674,-604.24,0.00021797,2]
[349982568,1737547864683,-500.0,0.00021797,2]
[349982569,1737547864694,-500.0,0.00021797,2]
[349982570,1737547864705,-500.0,0.00021797,2]
[349982571,1737547864716,-10000.0,0.00021797,2]
[349982572,1737547864725,-500.0,0.00021797,2]
[349982573,1737547864735,-10000.0,0.00021797,2]
[349982574,1737547864744,-515.33,0.00021798,2]
[349982575,1737547864754,-831.9,0.00021798,2]
[349982576,1737547864763,-1037.10875048,0.00021799,5]
[349982577,1737547864776,-151.0,0.00021799,2]
[349982578,1737547864786,-492.172787,0.00021799,2]
[349982579,1737547864796,-492.172787,0.00021799,2]
[349982580,1737547864805,-1097.0,0.000218,7]
[349982581,1737547864815,-22345.636236,0.000218,2]
[349982582,1737547864824,-22345.636236,0.000218,2]
[349982583,1737547864833,-22345.636236,0.000218,2]
[349982584,1737547864843,-22345.636236,0.000218,2]
[349982585,1737547864853,-1791.08,0.000218,2]
[349982586,1737547864862,-151.0,0.000218,2]
[349982587,1737547864872,-21265.733877,0.000218,2]
[349982588,1737547864882,-24923.174044,0.000218,2]
[349982589,1737547864892,-24923.174044,0.000218,2]
[349982590,1737547864902,-24923.174044,0.000218,2]
[349982591,1737547864911,-24923.174044,0.000218,2]
[349982592,1737547864921,-24923.174044,0.000218,2]
[349982593,1737547864930,-24923.174044,0.000218,2]
[349982594,1737547864939,-24923.174044,0.000218,2]
[349982595,1737547864948,-24923.174044,0.000218,2]
[349982596,1737547864958,-24923.174044,0.000218,2]
[349982597,1737547864968,-24923.174044,0.000218,2]
[349982598,1737547864978,-24923.174044,0.000218,2]
[349982599,1737547864987,-151.0,0.000218,2]
[349982600,1737547864997,-159.421722,0.000218,2]
[349982601,1737547865007,-300.011065,0.000218,2]
[349982602,1737547865016,-300.011065,0.000218,2]
[349982603,1737547865026,-151.0,0.000218,2]
[349982604,1737547865036,-272.040353,0.000218,2]
[349982605,1737547865046,-151.0,0.000218,2]
[349982606,1737547865056,-197.26206,0.000218,2]
[349982607,1737547865065,-197.26206,0.000218,2]
[349982608,1737547865075,-197.26206,0.000218,2]
[349982609,1737547865084,-197.26206,0.000218,2]
[349982610,1737547865094,-151.0,0.000218,2]
[349982611,1737547865104,-151.0,0.000218,2]
[349982612,1737547865114,-492.172787,0.000218,2]
[349982613,1737547865124,-245.701083,0.000218,2]
[349982614,1737547865134,-492.172787,0.000218,2]
[349982615,1737547865144,-245.701083,0.000218,2]
[349982616,1737547865154,-151.0,0.000218,2]
[349982617,1737547865164,-741.562359,0.000218,2]
[349982618,1737547865173,-741.562359,0.000218,2]
[349982619,1737547865183,-151.0,0.000218,2]
[349982620,1737547865192,-161.193939,0.000218,2]
[349982621,1737547865201,-151.0,0.000218,2]
[349982622,1737547865211,-286.77409,0.000218,2]
[349982623,1737547865220,-286.77409,0.000218,2]
[349982624,1737547865230,-828.11287614,0.000218,2]
[349982625,1737547865239,-151.0,0.000218,2]
[349982626,1737547865249,-151.0,0.000218,2]
[349982627,1737547865258,-8498.92329576,0.000218,2]
[349982628,1737547865448,-1501.07670424,0.000218,2]
[349982629,1737547865459,-10000.0,0.000218,2]
[349982630,1737547865468,-2138.0,0.00021818,2]
[349982631,1737547865477,-500.0,0.00021819,2]
[349982632,1737547865488,-500.0,0.00021822,2]
[349982633,1737547865497,-150.0,0.00021823,2]
[349982634,1737547865507,-319.8450645,0.00021831,3]
[349982635,1737547865517,-730.19265721,0.00021849,2]
[349982636,1737547865527,-150.0,0.00021855,2]
[349982637,1737547865536,-150.0,0.00021889,2]
[349982638,1737547865545,-1261.81305941,0.00021894,2]
[349982639,1737547865555,-500.0,0.00021898,2]
[349982640,1737547865564,-500.0,0.00021898,2]
[349982641,1737547865573,-569.992458,0.00021898,2]
[349982642,1737547865582,-671.5,0.00021898,2]
[349982643,1737547865592,-984.726808,0.00021898,2]
[349982644,1737547865603,-500.0,0.00021898,2]
[349982645,1737547865613,-300.011065,0.00021898,2]
[349982646,1737547865623,-300.011065,0.00021898,2]
[349982647,1737547865633,-151.0,0.00021898,2]
[349982648,1737547865643,-272.040353,0.00021898,2]
[349982649,1737547865653,-151.0,0.00021898,2]
[349982650,1737547865663,-500.0,0.00021898,2]
[349982651,1737547865672,-3228.73,0.00021898,2]
[349982652,1737547865682,-1797.99,0.00021898,2]
[349982653,1737547865693,-500.0,0.00021898,2]
[349982654,1737547865706,-578.89,0.00021898,2]
[349982655,1737547865715,-1192.31,0.00021898,2]
[349982656,1737547865725,-746.51,0.00021898,2]
[349982657,1737547865736,-568.95,0.00021898,2]
[349982658,1737547865746,-705.33,0.00021898,2]
[349982659,1737547865755,-2381.86,0.00021898,2]
[349982660,1737547865764,-1164.46,0.00021898,2]
[349982661,1737547865775,-802.62,0.00021898,2]
[349982662,1737547865785,-1262.57,0.00021898,2]
[349982663,1737547865795,-1492.48,0.00021898,2]
[349982664,1737547865805,-1279.29,0.00021898,2]
[349982665,1737547865814,-1938.69,0.00021898,2]
[349982666,1737547865824,-1527.74,0.00021898,2]
[349982667,1737547865833,-704.42,0.00021898,2]
[349982668,1737547865842,-1213.14,0.00021898,2]
[349982669,1737547865856,-3451.93,0.00021898,2]
[349982670,1737547865867,-629.18,0.00021898,2]
[349982671,1737547865877,-1662.99,0.00021898,2]
[349982672,1737547865887,-966.8,0.00021898,2]
[349982673,1737547865896,-1009.43,0.00021898,2]
[349982674,1737547865906,-1574.63968273,0.00021898,2]
[349982675,1737547865919,-272.46707659,0.00021898,2]
[349982676,1737547865930,-344.91725884,0.00021898,2]
[349982677,1737547866192,-500.0,0.0001998,2]
[349982678,1737547866202,-500.0,0.0001998,2]
[349982679,1737547866211,-500.0,0.0001998,2]
[349982680,1737547866221,-500.0,0.00020254,2]
[349982681,1737547866230,-172.04766848,0.00020426,2]
[349982682,1737547866240,-10000.0,0.000209,2]
[349982683,1737547866250,-10000.0,0.00020951,2]
[349982684,1737547866259,-10000.0,0.00021077,2]
[349982685,1737547866268,-10000.0,0.0002108,2]
[349982686,1737547866278,-4391.89598184,0.00021898,2]
[349982687,1737547866287,-1024.57,0.00021898,2]
[349982688,1737547866297,-1463.3,0.00021898,2]
[349982689,1737547866306,-1063.59,0.00021898,2]
[349982690,1737547866315,-1468.73,0.00021898,2]
[349982691,1737547866325,-1316.92,0.00021898,2]
[349982692,1737547866334,-500.0,0.00021898,2]
[349982693,1737547866343,-919.83,0.00021898,2]
[349982694,1737547866354,-1964.22,0.00021898,2]
[349982695,1737547866363,-904.6,0.00021898,2]
[349982696,1737547866373,-3487.61,0.00021898,2]
[349982697,1737547866382,-2139.18,0.00021898,2]
[349982698,1737547866392,-764.62,0.00021898,2]
[349982699,1737547866402,-2190.73,0.00021898,2]
[349982700,1737547866411,-1330.12,0.00021898,2]
[349982701,1737547866420,-3431.81,0.00021898,2]
[349982702,1737547866430,-1013.99,0.00021898,2]
[349982703,1737547866439,-2142.77,0.00021898,2]
[349982704,1737547866449,-1633.14,0.00021898,2]
[349982705,1737547866459,-1406.89,0.00021898,2]
[349982706,1737547866468,-2403.87976703,0.00021898,2]
[349982707,1737547866478,-2293.78,0.00021898,2]
[349982708,1737547866488,-556.77,0.00021898,2]
[349982709,1737547866497,-500.0,0.00021898,2]
[349982710,1737547866506,-2726.81,0.00021898,2]
[349982711,1737547866515,-1291.74,0.00021898,2]
[349982712,1737547866526,-630.28,0.00021898,2]
[349982713,1737547866536,-891.67,0.00021898,2]
[349982714,1737547866586,-3617.63,0.00021898,2]
[349982715,1737547866597,-896.19,0.00021898,2]
[349982716,1737547866606,-1173.78,0.00021898,2]
[349982717,1737547866615,-1204.38,0.00021898,2]
[349982718,1737547866625,-800.6,0.00021898,2]
[349982719,1737547866634,-1247.53,0.00021898,2]
[349982720,1737547866644,-1340.1,0.00021898,2]
[349982721,1737547866654,-2007.04,0.00021898,2]
[349982722,1737547866663,-1251.58,0.00021898,2]
[349982723,1737547866673,-555.69,0.00021898,2]
[349982724,1737547866682,-1252.77,0.00021898,2]
[349982725,1737547866693,-1377.98,0.00021898,2]
[349982726,1737547866705,-591.75,0.00021898,2]
[349982727,1737547866714,-1974.35,0.00021898,2]
[349982728,1737547866723,-500.0,0.00021898,2]
[349982729,1737547866734,-500.0,0.00021898,2]
[349982730,1737547866744,-1931.88,0.00021898,2]
[349982731,1737547866753,-3730.66,0.00021898,2]
[349982732,1737547866763,-1065.47,0.00021898,2]
[349982733,1737547866776,-1513.58,0.00021898,2]
[349982734,1737547866786,-490.2,0.00021898,2]
[349982735,1737547866795,-610.92,0.00021898,2]
[349982736,1737547866804,-1000.0,0.00021898,2]
[349982737,1737547866813,-1969.48,0.00021898,2]
[349982738,1737547866822,-500.0,0.00021898,2]
[349982739,1737547866832,-500.0,0.00021898,2]
[349982740,1737547866841,-500.0,0.00021898,2]
[349982741,1737547866853,-675.2,0.00021898,2]
[349982742,1737547866863,-1340.75,0.00021898,2]
[349982743,1737547866871,-712.32,0.00021898,2]
[349982744,1737547866881,-775.96,0.00021898,2]
[349982745,1737547866890,-1704.91,0.00021898,2]
[349982746,1737547866900,-500.0,0.00021898,2]
[349982747,1737547866909,-1007.97,0.00021898,2]
[349982748,1737547866918,-500.0,0.00021898,2]
[349982749,1737547866927,-1184.77,0.00021898,2]
[349982750,1737547866936,-2000.39,0.00021898,2]
[349982751,1737547866945,-1390.58,0.00021898,2]
[349982752,1737547866954,-711.47,0.00021898,2]
[349982753,1737547866964,-500.0,0.00021898,2]
[349982754,1737547866973,-500.0,0.00021898,2]
[349982755,1737547866982,-2985.24,0.00021898,2]
[349982756,1737547866991,-1512.07,0.00021898,2]
[349982757,1737547867000,-500.0,0.00021899,2]
[349982758,1737547867009,-500.0,0.00021899,2]
[349982759,1737547867018,-500.0,0.00021899,2]
[349982760,1737547867028,-500.0,0.00021899,2]
[349982761,1737547867038,-500.0,0.00021899,2]
[349982762,1737547867046,-500.0,0.00021899,2]
[349982763,1737547867055,-500.0,0.00021899,2]
[349982764,1737547867064,-528.44,0.00021899,2]
[349982765,1737547867073,-500.0,0.00021899,2]
[349982766,1737547867082,-500.0,0.00021899,2]
[349982767,1737547867091,-706.46,0.00021899,2]
[349982768,1737547867102,-500.0,0.00021899,2]
[349982769,1737547867111,-500.0,0.00021899,2]
[349982770,1737547867119,-500.0,0.00021899,2]
[349982771,1737547867128,-500.0,0.00021899,2]
[349982772,1737547867137,-500.0,0.00021899,2]
[349982773,1737547867147,-500.0,0.00021899,2]
[349982774,1737547867156,-500.0,0.00021899,2]
[349982775,1737547867165,-500.0,0.00021899,2]
[349982776,1737547867175,-500.0,0.00021899,2]
[349982777,1737547867184,-500.0,0.00021899,2]
[349982778,1737547867194,-500.0,0.00021899,2]
[349982779,1737547867203,-510.23,0.00021899,2]
[349982780,1737547867213,-640.11,0.00021899,2]
[349982781,1737547867222,-746.5,0.00021899,2]
[349982782,1737547867231,-632.07,0.00021899,2]
[349982783,1737547867240,-500.0,0.00021899,2]
[349982784,1737547867250,-500.0,0.00021899,2]
[349982785,1737547867259,-500.0,0.00021899,2]
[349982786,1737547867269,-500.0,0.00021899,2]
[349982787,1737547867278,-730.25,0.00021899,2]
[349982788,1737547867287,-594.26,0.00021899,2]
[349982789,1737547867296,-554.47,0.00021899,2]
[349982790,1737547867307,-834.31,0.00021899,2]
[349982791,1737547867317,-696.04,0.00021899,2]
[349982792,1737547867328,-500.0,0.00021899,2]
[349982793,1737547867338,-500.0,0.00021899,2]
[349982794,1737547867350,-500.0,0.00021899,2]
[349982795,1737547867359,-624.11,0.00021899,2]
[349982796,1737547867368,-500.0,0.00021899,2]
[349982797,1737547867377,-500.0,0.00021899,2]
[349982798,1737547867386,-740.39,0.00021899,2]
[349982799,1737547867395,-500.0,0.00021899,2]
[349982800,1737547867405,-500.0,0.00021899,2]
[349982801,1737547867414,-679.4,0.00021899,2]
[349982802,1737547867423,-916.61,0.00021899,2]
[349982803,1737547867432,-500.0,0.00021899,2]
[349982804,1737547867441,-617.62,0.00021899,2]
[349982805,1737547867450,-543.32,0.00021899,2]
[349982806,1737547867460,-500.0,0.00021899,2]
[349982807,1737547867469,-974.02,0.00021899,2]
[349982808,1737547867478,-741.49,0.00021899,2]
[349982809,1737547867488,-981.48,0.00021899,2]
[349982810,1737547867497,-807.58,0.00021899,2]
[349982811,1737547867507,-500.0,0.00021899,2]
[349982812,1737547867516,-500.0,0.00021899,2]
[349982813,1737547867526,-716.75,0.00021899,2]
[349982814,1737547867535,-500.0,0.000219,21]
[349982815,1737547867544,-11000.0,0.000219,2]
[349982816,1737547867553,-209.881666,0.000219,2]
[349982817,1737547867562,-209.881666,0.000219,2]
[349982818,1737547867571,-2000.0,0.000219,2]
[349982819,1737547867580,-1540.5741,0.000219,2]
[349982820,1737547867590,-892.40594956,0.000219,2]
[349982821,1737547867600,-319.42004417,0.000219,2]
[349982822,1737547867609,-167.08419073,0.000219,2]
[349982823,1737547867619,-151.24682486,0.000219,2]
[349982824,1737547867628,-151.24682485,0.000219,2]
[349982825,1737547867638,-6851.9919207,0.000219,2]
[349982826,1737547867647,-369.99212057,0.000219,2]
[349982827,1737547867657,-828.11287614,0.000219,2]
[349982828,1737547867666,-179.43683033,0.000219,2]
[349982829,1737547867675,-319.8450645,0.000219,3]
[349982830,1737547867684,-500.0,0.00021901,2]
[349982831,1737547867696,-150.0,0.00021913,2]
[349982832,1737547867705,-554.96,0.00021917,2]
[349982833,1737547867714,-554.96,0.00021917,2]
[349982834,1737547867723,-554.96,0.00021917,2]
[349982835,1737547867733,-554.96,0.00021917,2]
[349982836,1737547867743,-554.96,0.00021917,2]
[349982837,1737547867751,-554.96,0.00021917,2]
[349982838,1737547867761,-554.96,0.00021917,2]
[349982839,1737547867771,-554.96,0.00021917,2]
[349982840,1737547867781,-151.0,0.00021917,2]
[349982841,1737547867790,-500.0,0.00021917,3]
[349982842,1737547867798,-500.0,0.00021917,3]
[349982843,1737547867807,-500.0,0.00021917,3]
[349982844,1737547867816,-757.96,0.00021917,2]
[349982845,1737547867825,-757.96,0.00021917,2]
[349982846,1737547867834,-757.96,0.00021917,2]
[349982847,1737547867843,-757.96,0.00021917,2]
[349982848,1737547867853,-757.96,0.00021917,2]
[349982849,1737547867863,-757.96,0.00021917,2]
[349982850,1737547867872,-757.96,0.00021917,2]
[349982851,1737547867881,-757.96,0.00021917,2]
[349982852,1737547867891,-500.0,0.00021917,2]
[349982853,1737547867900,-500.0,0.00021917,2]
[349982854,1737547867909,-239.78907965,0.00021917,2]
[349982855,1737547867919,-4000.0,0.00021918,2]
[349982856,1737547867928,-1864.12,0.00021918,2]
[349982857,1737547867938,-150.0,0.00021918,2]
[349982858,1737547867948,-500.0,0.00021918,2]
[349982859,1737547867957,-500.0,0.00021945,2]
[349982860,1737547867967,-150.0,0.00021945,4]
[349982861,1737547867976,-758.11,0.00021959,7]
[349982862,1737547867986,-758.11,0.00021959,7]
[349982863,1737547867996,-150.0,0.00021964,2]
[349982864,1737547868005,-4843.0,0.00021973,2]
[349982865,1737547868014,-500.0,0.00021973,2]
[349982866,1737547868023,-7659.37593735,0.0002198,2]
[349982867,1737547868037,-151.0,0.0002198,7]
[349982868,1737547868047,-151.0,0.0002198,7]
[349982869,1737547868056,-245.701083,0.0002198,7]
[349982870,1737547868066,-245.701083,0.0002198,7]
[349982871,1737547868076,-741.562359,0.0002198,7]
[349982872,1737547868085,-741.562359,0.0002198,7]
[349982873,1737547868095,-3892.348033,0.00021985,2]
[349982874,1737547868105,-1079.4986291,0.00021985,2]
[349982875,1737547868115,-301.415241,0.00021985,7]
[349982876,1737547868127,-1225.3861227,0.00021985,2]
[349982877,1737547868137,-151.0,0.00021985,7]
[349982878,1737547868147,-286.77409,0.00021985,7]
[349982879,1737547868156,-286.77409,0.00021985,7]
[349982880,1737547868166,-2157.5783635,0.00021985,2]
[349982881,1737547868175,-10000.0,0.00021985,7]
[349982882,1737547868184,-10000.0,0.00021985,7]
[349982883,1737547868194,-270.3626764,0.0002199,2]
[349982884,1737547868203,-104314.21692811,0.00021994,4]
[349982885,1737547868213,-151.0,0.00021994,7]
[349982886,1737547868226,-197.26206,0.00021994,7]
[349982887,1737547868236,-197.26206,0.00021994,7]
[349982888,1737547868247,-151.0,0.00021994,7]
[349982889,1737547868257,-492.172787,0.00021994,7]
[349982890,1737547868267,-492.172787,0.00021994,7]
[349982891,1737547868277,-151.0,0.00021994,7]
[349982892,1737547868286,-420.69903824,0.00021996,2]
[349982893,1737547868295,-582.58649583,0.00021996,2]
[349982894,1737547868304,-42133.39941398,0.00021998,3]
[349982895,1737547868313,-315616.85094394,0.00021998,3]
[349982896,1737547868323,-46331.76099443,0.00021998,2]
[349982897,1737547868332,-510.23,0.00021998,2]
[349982898,1737547868341,-500.0,0.00021998,2]
[349982899,1737547868352,-500.0,0.00021998,2]
[349982900,1737547868361,-500.0,0.00021998,2]
[349982901,1737547868371,-151.0,0.00021998,7]
[349982902,1737547868380,-151.0,0.00021998,7]
[349982903,1737547868389,-209.881666,0.00021998,7]
[349982904,1737547868399,-209.881666,0.00021998,7]
[349982905,1737547868408,-151.0,0.00021998,7]
[349982906,1737547868417,-300.011065,0.00021998,7]
[349982907,1737547868427,-300.011065,0.00021998,7]
[349982908,1737547868437,-300.011065,0.00021998,7]
[349982909,1737547868446,-300.011065,0.00021998,7]
[349982910,1737547868456,-151.0,0.00021998,7]
[349982911,1737547868465,-208.471312,0.00021998,7]
[349982912,1737547868475,-272.040353,0.00021998,7]
[349982913,1737547868484,-272.040353,0.00021998,7]
[349982914,1737547868494,-197.26206,0.00021998,7]
[349982915,1737547868503,-197.26206,0.00021998,7]
[349982916,1737547868513,-151.0,0.00021998,7]
[349982917,1737547868523,-151.0,0.00021998,7]
[349982918,1737547868533,-492.172787,0.00021998,7]
[349982919,1737547868543,-245.701083,0.00021998,7]
[349982920,1737547868552,-492.172787,0.00021998,7]
[349982921,1737547868562,-245.701083,0.00021998,7]
[349982922,1737547868572,-741.562359,0.00021998,7]
[349982923,1737547868581,-741.562359,0.00021998,7]
[349982924,1737547868591,-151.0,0.00021998,7]
[349982925,1737547868602,-286.77409,0.00021998,7]
[349982926,1737547868612,-286.77409,0.00021998,7]
[349982927,1737547868621,-151.0,0.00021998,7]
[349982928,1737547868631,-10000.0,0.00021998,7]
[349982929,1737547868640,-10000.0,0.00021998,7]
[349982930,1737547868649,-112877.96730602,0.00021999,2]
[349982931,1737547868659,-30113.13038273,0.00021999,2]
[349982932,1737547868668,-651.00371478,0.00021999,2]
[349982933,1737547868677,-2000.0,0.00021999,2]
[349982934,1737547868686,-3135.81429783,0.00021999,2]
[349982935,1737547868698,-2000.0,0.00021999,2]
[349982936,1737547868707,-2000.0,0.00021999,2]
[349982937,1737547868717,-2000.0,0.00021999,2]
[349982938,1737547868726,-3744.94788255,0.00022,2]
[349982939,1737547868737,-2421267.96513109,0.00022,2]
[349982940,1737547868747,-5000.0,0.00022,2]
[349982941,1737547868756,-831780.4646133,0.00022,2]
[349982942,1737547868781,-515.75,0.00020254,2]
[349982943,1737547868791,-1592.6483862,0.00021351,2]
[349982944,1737547869031,-0.75724083,0.0001998,2]
[349982945,1737547869060,-499.24275917,0.0001998,2]
[349982946,1737547869070,-500.0,0.00019981,2]
[349982947,1737547869080,-500.0,0.00020153,2]
[349982948,1737547869092,-500.0,0.00020254,2]
[349982949,1737547869103,-429.73005586,0.00020255,2]
[349982950,1737547869112,-154.78766109,0.00020427,2]
[349982951,1737547869124,-345.21233891,0.00020427,2]
[349982952,1737547869134,-144.02625003,0.00020528,2]
[349982953,1737547869145,-355.97374997,0.00020528,2]
[349982954,1737547869154,-59.75745003,0.00020701,2]
[349982955,1737547869165,-472.32254997,0.00020701,2]
[349982956,1737547869175,-500.0,0.00020802,2]
[349982957,1737547869186,-151.0,0.000209,2]
[349982958,1737547869195,-306.87315707,0.00020902,2]
[349982959,1737547869205,-151.0,0.00020951,2]
[349982960,1737547869215,-500.0,0.00021076,2]
[349982961,1737547869225,-151.0,0.00021077,2]
[349982962,1737547869235,-500.0,0.0002135,2]
[349982963,1737547869245,-8407.3516138,0.00021351,2]
[349982964,1737547869255,-500.0,0.00021624,2]
[349982965,1737547869264,-509.559286,0.00021797,2]
[349982966,1737547869274,-188.925371,0.00021898,2]
[349982967,1737547869283,-339116.09429876,0.00022,2]
[349982968,1737547869292,-1800.0,0.00022,23]
[349982969,1737547869302,-7591.17966391,0.00022,2]
[349982970,1737547869311,-567.0128785,0.00022,22]
[349982971,1737547869320,-323849.10215548,0.00022,2]
[349982972,1737547869333,-12674.517128,0.00022,2]
[349982973,1737547869344,-520.35999998,0.00022,2]
[349982974,1737547869356,-1609.77767149,0.00022,2]
[349982975,1737547869628,-200.80139035,0.00019227,2]
[349982976,1737547869638,-500.0,0.0001998,2]
[349982977,1737547869649,-399.50346371,0.0001998,2]
[349982978,1737547869666,-107.0447303,0.0001998,2]
[349982979,1737547869675,-158.016512,0.0001998,2]
[349982980,1737547869685,-500.0,0.0001998,2]
[349982981,1737547869697,-500.0,0.0001998,2]
[349982982,1737547869706,-500.0,0.00020254,2]
[349982983,1737547869716,-500.0,0.00020254,2]
[349982984,1737547869726,-500.0,0.00020528,2]
[349982985,1737547869736,-478.5387577,0.00020528,2]
[349982986,1737547869748,-21.4612423,0.00020528,2]
[349982987,1737547869758,-500.0,0.00020802,2]
[349982988,1737547869769,-158.016512,0.00021076,2]
[349982989,1737547869778,-358.60718032,0.00021076,2]
[349982990,1737547869790,-141.39281968,0.00021076,2]
[349982991,1737547869799,-151.0,0.0002108,2]
[349982992,1737547869809,-500.0,0.0002135,2]
[349982993,1737547869819,-37.87610634,0.00021351,2]
[349982994,1737547869907,-110.35554141,0.00021351,2]
[349982995,1737547871874,500.0,0.00018548,2]
[349982996,1737547890661,170.72,0.00016346,2]
[349982998,1737548180338,257.11,0.00010137,2]
[349983000,1737548415106,2146.0,0.000179,3]
[349983001,1737548477703,5558.0,0.00018,5]
[349983002,1737548643924,728.5738,0.00018,8]
[349983003,1737548708498,289749.25257833,0.00012,2]
[349983007,1737548831127,-224.1069638,0.00017245,2]
[349983008,1737548841123,-345.1930362,0.00017245,2]
[349983009,1737548841144,-1229.247308,0.00018455,2]
[349983010,1737548841166,-500.0,0.00018548,2]
[349983011,1737548841188,-500.0,0.00018548,2]
[349983012,1737548841209,-1450.86948767,0.00019,2]
[349983016,1737548882315,37739.99605141,0.0001,2]
[349983024,1737548945077,-3190.756422,0.00015,2]
[349983025,1737548960088,-566.24255455,0.00015,2]
[349983026,1737548960113,-500.0,0.00018548,2]
[349983027,1737548960135,-300.0,0.00018622,2]
[349983028,1737548960155,-8103.0,0.00018623,2]
[349983029,1737548960176,-9326.80682009,0.00019,2]
[349983030,1737548960198,-340.11239134,0.0001901,7]
[349983031,1737548960220,-1000.0,0.00019134,2]
[349983032,1737548960240,-250.0,0.00019267,2]
[349983033,1737548960261,-178.45,0.00019326,2]
[349983034,1737548960281,-394.22,0.00019362,2]
[349983035,1737548960303,-277.91,0.0001938,2]
[349983036,1737548960324,-569.3,0.00019509,2]
[349983037,1737548979749,193.68,0.00019218,2]
[349983050,1737549032066,-8737.87089406,0.00019678,2]
[349983051,1737549032075,-150.06,0.00019787,2]
[349983052,1737549032085,-153.22,0.00019788,30]
[349983053,1737549032095,-1335.98476412,0.00019879,2]
[349983054,1737549032106,-333.39474208,0.0001988,2]
[349983055,1737549032115,-167.14802507,0.0001988,2]
[349983056,1737549032124,-5000.0,0.0001988,2]
[349983057,1737549032133,-316.9432,0.00019881,2]
[349983058,1737549032146,-2270.2593,0.00019881,2]
[349983059,1737549032160,-13601.68356276,0.000199,2]
[349983060,1737549032169,-307.23134399,0.000199,2]
[349983061,1737549032178,-213.03368821,0.000199,2]
[349983062,1737549032187,-166.36,0.0001997,2]
[349983063,1737549032197,-166.36,0.0001997,2]
[349983064,1737549032206,-150.37037659,0.00019979,2]
[349983065,1737549032215,-566.955,0.00019979,2]
[349983066,1737549032225,-500.0,0.00019979,2]
[349983067,1737549032234,-504.39052004,0.00019979,2]
[349983068,1737549032243,-500.0,0.00019979,2]
[349983069,1737549032253,-500.0,0.00019979,2]
[349983070,1737549032262,-500.0,0.00019979,2]
[349983071,1737549032272,-500.0,0.00019979,2]
[349983072,1737549032281,-383.7997835,0.00019979,2]
[349983073,1737549032290,-502.35029851,0.00019979,2]
[349983074,1737549032299,-500.0,0.00019979,2]
[349983075,1737549032309,-502.32570771,0.00019979,2]
[349983076,1737549032318,-500.0,0.00019979,2]
[349983077,1737549032327,-516.62,0.00019979,2]
[349983078,1737549032337,-500.0,0.00019979,2]
[349983079,1737549032347,-508.22028636,0.00019979,2]
[349983080,1737549032357,-500.0,0.00019979,2]
[349983081,1737549032366,-373.50733724,0.00019979,2]
[349983082,1737549032376,-500.0,0.00019979,2]
[349983083,1737549032385,-500.0,0.00019979,2]
[349983084,1737549032393,-576.43,0.00019979,2]
[349983085,1737549032402,-500.0,0.00019979,2]
[349983086,1737549032411,-500.0,0.00019979,2]